[Event "Titled Tuesday Blitz August 22 Early 2023"]
[White "laidfrq"]
[Black "Czerw, Dawid"]
[BlackFideId "1145746"]
[WhiteElo "2361"]
[BlackElo "2487"]
[Result "1-0"]
[Round "8"]
[TimeControl "180+1"]
[Date "2023.08.22"]
[WhiteClock "0:00:55"]
[BlackClock "0:00:41"]
[Board "144"]

1. e4 {[%clk 0:03:00]}  c5 {[%clk 0:02:47]} 2. Nf3 {[%clk 0:03:00]}  g6 {[%clk 0:02:47]} 3. d4 {[%clk 0:02:58]}  cxd4 {[%clk 0:02:48]} 4. Qxd4 {[%clk 0:02:58]}  f6 {[%clk 0:02:48]} 5. Bc4 {[%clk 0:02:54]}  Nc6 {[%clk 0:02:47]} 6. Qc3 {[%clk 0:02:43]}  e6 {[%clk 0:02:46]} 7. O-O {[%clk 0:02:41]}  Bg7 {[%clk 0:02:45]} 8. Bf4 {[%clk 0:02:39]}  Nge7 {[%clk 0:02:45]} 9. Bd6 {[%clk 0:02:35]}  O-O {[%clk 0:02:44]} 10. Nbd2 {[%clk 0:02:32]}  a6 {[%clk 0:02:40]} 11. a4 {[%clk 0:02:31]}  b6 {[%clk 0:02:40]} 12. Rad1 {[%clk 0:02:28]}  Bb7 {[%clk 0:02:38]} 13. Rfe1 {[%clk 0:02:25]}  Rc8 {[%clk 0:02:37]} 14. Qd3 {[%clk 0:02:16]}  Na5 {[%clk 0:02:26]} 15. Bxa6 {[%clk 0:02:03]}  Bxa6 {[%clk 0:02:27]} 16. Qxa6 {[%clk 0:02:04]}  Rxc2 {[%clk 0:02:28]} 17. b4 {[%clk 0:01:48]}  Nac6 {[%clk 0:02:14]} 18. Qd3 {[%clk 0:01:48]}  Rb2 {[%clk 0:01:53]} 19. Qa3 {[%clk 0:01:47]}  f5 {[%clk 0:01:48]} 20. e5 {[%clk 0:01:40]}  Rxd2 {[%clk 0:01:43]} 21. Nxd2 {[%clk 0:01:38]}  Re8 {[%clk 0:01:39]} 22. Nc4 {[%clk 0:01:36]}  Nd5 {[%clk 0:01:38]} 23. b5 {[%clk 0:01:35]}  Na7 {[%clk 0:01:31]} 24. Ne3 {[%clk 0:01:33]}  Nf4 {[%clk 0:01:29]} 25. g3 {[%clk 0:01:28]}  Nh3+ {[%clk 0:01:28]} 26. Kg2 {[%clk 0:01:28]}  Ng5 {[%clk 0:01:26]} 27. Nc4 {[%clk 0:01:25]}  Nc8 {[%clk 0:01:24]} 28. Qe3 {[%clk 0:01:22]}  Bh6 {[%clk 0:01:21]} 29. f4 {[%clk 0:01:19]}  Ne4 {[%clk 0:01:20]} 30. Bb4 {[%clk 0:01:17]}  g5 {[%clk 0:01:19]} 31. Qd4 {[%clk 0:01:12]}  d5 {[%clk 0:01:02]} 32. exd6 {[%clk 0:01:12]}  gxf4 {[%clk 0:01:02]} 33. d7 {[%clk 0:01:11]}  f3+ {[%clk 0:00:53]} 34. Kxf3 {[%clk 0:01:04]}  Rf8 {[%clk 0:00:49]} 35. Bxf8 {[%clk 0:01:01]}  Bxf8 {[%clk 0:00:48]} 36. dxc8=Q {[%clk 0:01:01]}  Qxc8 {[%clk 0:00:49]} 37. Rxe4 {[%clk 0:00:55]}  fxe4+ {[%clk 0:00:47]} 38. Qxe4 {[%clk 0:00:55]}  Qc5 {[%clk 0:00:44]} 39. Qxe6+ {[%clk 0:00:54]}  Kh8 {[%clk 0:00:41]} 40. Qe5+ {[%clk 0:00:55]} 1-0


[Site "https://www.chess.com"]

[Event "Titled Tuesday Blitz August 22 Early 2023"]
[White "Pace, Christopher"]
[Black "Shuvalov, Evgenij"]
[WhiteFideId "2610167"]
[BlackFideId "4187237"]
[WhiteElo "2344"]
[BlackElo "2471"]
[Result "1-0"]
[Round "8"]
[TimeControl "180+1"]
[Date "2023.08.22"]
[WhiteClock "0:00:05"]
[BlackClock "0:00:00"]
[Board "146"]

1. e4 {[%clk 0:03:00]}  e6 {[%clk 0:02:59]} 2. d3 {[%clk 0:02:57]}  d5 {[%clk 0:02:59]} 3. Nd2 {[%clk 0:02:57]}  c5 {[%clk 0:02:59]} 4. Ngf3 {[%clk 0:02:58]}  Nc6 {[%clk 0:03:00]} 5. g3 {[%clk 0:02:58]}  Nf6 {[%clk 0:03:00]} 6. Bg2 {[%clk 0:02:58]}  Be7 {[%clk 0:03:01]} 7. O-O {[%clk 0:02:58]}  O-O {[%clk 0:03:02]} 8. Re1 {[%clk 0:02:51]}  b5 {[%clk 0:03:01]} 9. a4 {[%clk 0:02:44]}  bxa4 {[%clk 0:02:58]} 10. e5 {[%clk 0:02:29]}  Nd7 {[%clk 0:02:55]} 11. Nf1 {[%clk 0:02:27]}  a5 {[%clk 0:02:53]} 12. Rxa4 {[%clk 0:02:26]}  Ba6 {[%clk 0:02:43]} 13. h4 {[%clk 0:02:04]}  Nb4 {[%clk 0:02:41]} 14. N1h2 {[%clk 0:01:59]}  Bb5 {[%clk 0:02:40]} 15. Ra1 {[%clk 0:01:57]}  a4 {[%clk 0:02:39]} 16. Bf1 {[%clk 0:01:53]}  d4 {[%clk 0:02:28]} 17. h5 {[%clk 0:01:43]}  h6 {[%clk 0:02:27]} 18. Ng4 {[%clk 0:01:40]}  Bc6 {[%clk 0:02:27]} 19. Bg2 {[%clk 0:01:35]}  Qc7 {[%clk 0:02:22]} 20. Bf4 {[%clk 0:01:24]}  Qb7 {[%clk 0:02:21]} 21. c3 {[%clk 0:00:49]}  dxc3 {[%clk 0:02:07]} 22. bxc3 {[%clk 0:00:47]}  Nd5 {[%clk 0:02:07]} 23. Bd2 {[%clk 0:00:47]}  a3 {[%clk 0:01:56]} 24. Qc1 {[%clk 0:00:36]}  Qb2 {[%clk 0:01:52]} 25. Bxh6 {[%clk 0:00:25]}  gxh6 {[%clk 0:01:46]} 26. Qxh6 {[%clk 0:00:24]}  Qxc3 {[%clk 0:00:50]} 27. Ng5 {[%clk 0:00:17]}  Bxg5 {[%clk 0:00:45]} 28. Qxg5+ {[%clk 0:00:16]}  Kh8 {[%clk 0:00:44]} 29. Qh6+ {[%clk 0:00:15]}  Kg8 {[%clk 0:00:44]} 30. Be4 {[%clk 0:00:13]}  f5 {[%clk 0:00:37]} 31. Qxe6+ {[%clk 0:00:06]}  Kh8 {[%clk 0:00:36]} 32. Qh6+ {[%clk 0:00:04]}  Kg8 {[%clk 0:00:36]} 33. Qg6+ {[%clk 0:00:05]}  Kh8 {[%clk 0:00:36]} 34. Qh6+ {[%clk 0:00:05]}  Kg8 {[%clk 0:00:36]} 35. Qxc6 {[%clk 0:00:05]}  fxe4 {[%clk 0:00:25]} 36. Qxd5+ {[%clk 0:00:05]}  Kh8 {[%clk 0:00:25]} 37. Qxd7 {[%clk 0:00:03]}  Qxd3 {[%clk 0:00:19]} 38. Qe6 {[%clk 0:00:03]}  Ra6 {[%clk 0:00:16]} 39. Qe7 {[%clk 0:00:02]}  Rg8 {[%clk 0:00:14]} 40. Qh4 {[%clk 0:00:02]}  Qf3 {[%clk 0:00:13]} 41. Nf6 {[%clk 0:00:03]}  Rg7 {[%clk 0:00:08]} 42. Re3 {[%clk 0:00:03]}  Qf5 {[%clk 0:00:07]} 43. Rae1 {[%clk 0:00:04]}  a2 {[%clk 0:00:07]} 44. Ra1 {[%clk 0:00:03]}  Qxe5 {[%clk 0:00:06]} 45. Rxa2 {[%clk 0:00:03]}  Rxa2 {[%clk 0:00:05]} 46. Rxe4 {[%clk 0:00:04]}  Ra1+ {[%clk 0:00:05]} 47. Kg2 {[%clk 0:00:05]}  Qxe4+ {[%clk 0:00:00]} 48. Qxe4 {[%clk 0:00:05]} 1-0


[Site "https://www.chess.com"]

[Event "Titled Tuesday Blitz August 22 Early 2023"]
[White "Kaganskiy, Gleb"]
[Black "Omariev, Maksim"]
[WhiteFideId "4132025"]
[BlackFideId "4193423"]
[WhiteElo "2322"]
[BlackElo "2468"]
[Result "1-0"]
[Round "8"]
[TimeControl "180+1"]
[Date "2023.08.22"]
[WhiteClock "0:01:08"]
[BlackClock "0:00:00"]
[Board "147"]

1. e4 {[%clk 0:03:00]}  c5 {[%clk 0:02:56]} 2. Nf3 {[%clk 0:02:58]}  d6 {[%clk 0:02:55]} 3. Nc3 {[%clk 0:02:57]}  Nf6 {[%clk 0:02:55]} 4. e5 {[%clk 0:02:57]}  dxe5 {[%clk 0:02:55]} 5. Nxe5 {[%clk 0:02:58]}  Nbd7 {[%clk 0:02:55]} 6. d4 {[%clk 0:02:46]}  Nxe5 {[%clk 0:02:53]} 7. dxe5 {[%clk 0:02:46]}  Qxd1+ {[%clk 0:02:54]} 8. Nxd1 {[%clk 0:02:45]}  Ng4 {[%clk 0:02:52]} 9. f4 {[%clk 0:02:31]}  h5 {[%clk 0:02:45]} 10. Ne3 {[%clk 0:02:22]}  Bd7 {[%clk 0:02:39]} 11. h3 {[%clk 0:02:18]}  Nxe3 {[%clk 0:02:11]} 12. Bxe3 {[%clk 0:02:18]}  e6 {[%clk 0:02:12]} 13. Be2 {[%clk 0:02:05]}  O-O-O {[%clk 0:01:59]} 14. O-O-O {[%clk 0:02:01]}  h4 {[%clk 0:01:52]} 15. Bf3 {[%clk 0:02:00]}  Be7 {[%clk 0:01:51]} 16. Rd2 {[%clk 0:01:55]}  b6 {[%clk 0:01:34]} 17. Rhd1 {[%clk 0:01:54]}  f5 {[%clk 0:01:15]} 18. Bb7+ {[%clk 0:01:48]}  Kc7 {[%clk 0:01:12]} 19. Bf3 {[%clk 0:01:46]}  Rhg8 {[%clk 0:01:08]} 20. b3 {[%clk 0:01:37]}  g5 {[%clk 0:01:00]} 21. fxg5 {[%clk 0:01:35]}  Rxg5 {[%clk 0:00:51]} 22. Bxg5 {[%clk 0:01:35]}  Bxg5 {[%clk 0:00:51]} 23. Kb2 {[%clk 0:01:31]}  Bxd2 {[%clk 0:00:11]} 24. Rxd2 {[%clk 0:01:31]}  Rg8 {[%clk 0:00:11]} 25. Kc3 {[%clk 0:01:22]}  Rg3 {[%clk 0:00:00]} 26. Rd3 {[%clk 0:01:08]} 1-0


[Site "https://www.chess.com"]

[Event "Titled Tuesday Blitz August 22 Early 2023"]
[White "laimis61"]
[Black "Yeritsyan, Hayk"]
[BlackFideId "13307320"]
[WhiteElo "2287"]
[BlackElo "2455"]
[Result "1-0"]
[Round "8"]
[TimeControl "180+1"]
[Date "2023.08.22"]
[WhiteClock "0:01:24"]
[BlackClock "0:00:59"]
[Board "149"]

1. e4 {[%clk 0:03:00]}  d6 {[%clk 0:02:35]} 2. d4 {[%clk 0:02:59]}  Nf6 {[%clk 0:02:30]} 3. Nc3 {[%clk 0:02:58]}  Nbd7 {[%clk 0:02:29]} 4. Nf3 {[%clk 0:02:57]}  e5 {[%clk 0:02:29]} 5. Rg1 {[%clk 0:02:56]}  Be7 {[%clk 0:02:23]} 6. g4 {[%clk 0:02:55]}  c6 {[%clk 0:02:23]} 7. Be3 {[%clk 0:02:49]}  Qc7 {[%clk 0:02:11]} 8. Qd2 {[%clk 0:02:45]}  a6 {[%clk 0:01:57]} 9. O-O-O {[%clk 0:02:44]}  b5 {[%clk 0:01:56]} 10. g5 {[%clk 0:02:42]}  Nh5 {[%clk 0:01:49]} 11. h4 {[%clk 0:02:38]}  b4 {[%clk 0:01:47]} 12. Ne2 {[%clk 0:02:37]}  a5 {[%clk 0:01:47]} 13. Kb1 {[%clk 0:02:34]}  Ba6 {[%clk 0:01:46]} 14. Nc1 {[%clk 0:02:32]}  Bxf1 {[%clk 0:01:45]} 15. Rgxf1 {[%clk 0:02:30]}  O-O {[%clk 0:01:43]} 16. Nd3 {[%clk 0:02:17]}  exd4 {[%clk 0:01:40]} 17. Nxd4 {[%clk 0:02:15]}  Ne5 {[%clk 0:01:36]} 18. Nf5 {[%clk 0:02:00]}  Nc4 {[%clk 0:01:31]} 19. Qe2 {[%clk 0:01:59]}  Rfe8 {[%clk 0:01:25]} 20. Qxh5 {[%clk 0:01:53]}  g6 {[%clk 0:01:17]} 21. Nh6+ {[%clk 0:01:45]}  Kg7 {[%clk 0:01:17]} 22. Qf3 {[%clk 0:01:44]}  Rf8 {[%clk 0:01:15]} 23. Ng4 {[%clk 0:01:38]}  Ne5 {[%clk 0:01:11]} 24. Bd4 {[%clk 0:01:35]}  f5 {[%clk 0:01:06]} 25. gxf6+ {[%clk 0:01:34]}  Bxf6 {[%clk 0:01:06]} 26. Nxf6 {[%clk 0:01:27]}  Rxf6 {[%clk 0:01:06]} 27. Qg3 {[%clk 0:01:26]}  Re8 {[%clk 0:00:59]} 28. f4 {[%clk 0:01:24]} 1-0


[Site "https://www.chess.com"]

[Event "Titled Tuesday Blitz August 22 Early 2023"]
[White "Liu, Casper"]
[Black "Hoffmann, Asa"]
[WhiteFideId "1454153"]
[BlackFideId "2001470"]
[WhiteElo "2453"]
[BlackElo "2285"]
[Result "1-0"]
[Round "8"]
[TimeControl "180+1"]
[Date "2023.08.22"]
[WhiteClock "0:00:07"]
[BlackClock "0:00:08"]
[Board "150"]

1. e4 {[%clk 0:03:00]}  d6 {[%clk 0:02:56]} 2. Qe2 {[%clk 0:02:59]}  c5 {[%clk 0:02:53]} 3. Nf3 {[%clk 0:02:57]}  Nc6 {[%clk 0:02:52]} 4. c3 {[%clk 0:02:57]}  g6 {[%clk 0:02:51]} 5. g3 {[%clk 0:02:56]}  Bg7 {[%clk 0:02:51]} 6. Bg2 {[%clk 0:02:57]}  e5 {[%clk 0:02:48]} 7. O-O {[%clk 0:02:56]}  Nge7 {[%clk 0:02:48]} 8. d3 {[%clk 0:02:56]}  h6 {[%clk 0:02:48]} 9. Nbd2 {[%clk 0:02:56]}  Be6 {[%clk 0:02:47]} 10. Nc4 {[%clk 0:02:55]}  O-O {[%clk 0:02:44]} 11. a4 {[%clk 0:02:55]}  Qd7 {[%clk 0:02:38]} 12. Ne3 {[%clk 0:02:40]}  f5 {[%clk 0:02:35]} 13. exf5 {[%clk 0:02:33]}  gxf5 {[%clk 0:02:33]} 14. Nh4 {[%clk 0:02:32]}  f4 {[%clk 0:02:28]} 15. Nc4 {[%clk 0:02:25]}  Bf6 {[%clk 0:02:13]} 16. Qh5 {[%clk 0:02:20]}  Kg7 {[%clk 0:01:55]} 17. h3 {[%clk 0:01:46]}  Bf7 {[%clk 0:01:51]} 18. Qg4+ {[%clk 0:01:29]}  Qxg4 {[%clk 0:01:50]} 19. hxg4 {[%clk 0:01:30]}  Bxc4 {[%clk 0:01:35]} 20. dxc4 {[%clk 0:01:30]}  Bxh4 {[%clk 0:01:35]} 21. gxh4 {[%clk 0:01:31]}  Na5 {[%clk 0:01:30]} 22. Rd1 {[%clk 0:01:17]}  Rad8 {[%clk 0:01:29]} 23. b4 {[%clk 0:01:07]}  Nb3 {[%clk 0:01:25]} 24. Rb1 {[%clk 0:01:04]}  Nxc1 {[%clk 0:01:24]} 25. Rdxc1 {[%clk 0:01:02]}  b6 {[%clk 0:01:24]} 26. Be4 {[%clk 0:00:52]}  f3 {[%clk 0:01:21]} 27. Kh2 {[%clk 0:00:43]}  Rf4 {[%clk 0:01:21]} 28. Bb7 {[%clk 0:00:28]}  Rxg4 {[%clk 0:01:17]} 29. Rg1 {[%clk 0:00:26]}  h5 {[%clk 0:01:07]} 30. Bxf3 {[%clk 0:00:26]}  Rxg1 {[%clk 0:01:00]} 31. Rxg1+ {[%clk 0:00:26]}  Kf6 {[%clk 0:00:56]} 32. Bxh5 {[%clk 0:00:24]}  Rh8 {[%clk 0:00:56]} 33. Rg5 {[%clk 0:00:23]}  Nf5 {[%clk 0:00:55]} 34. Kh3 {[%clk 0:00:15]}  Rh6 {[%clk 0:00:51]} 35. Kg4 {[%clk 0:00:14]}  Ng7 {[%clk 0:00:46]} 36. a5 {[%clk 0:00:07]}  e4 {[%clk 0:00:27]} 37. Rd5 {[%clk 0:00:03]}  Rxh5 {[%clk 0:00:25]} 38. Rxh5 {[%clk 0:00:03]}  Nxh5 {[%clk 0:00:25]} 39. Kxh5 {[%clk 0:00:04]}  Ke5 {[%clk 0:00:25]} 40. Kg5 {[%clk 0:00:04]}  d5 {[%clk 0:00:23]} 41. cxd5 {[%clk 0:00:02]}  Kxd5 {[%clk 0:00:23]} 42. h5 {[%clk 0:00:02]}  Kc4 {[%clk 0:00:23]} 43. h6 {[%clk 0:00:03]}  Kxc3 {[%clk 0:00:23]} 44. h7 {[%clk 0:00:03]}  cxb4 {[%clk 0:00:24]} 45. h8=Q+ {[%clk 0:00:04]}  Kc2 {[%clk 0:00:23]} 46. Kf4 {[%clk 0:00:04]}  b3 {[%clk 0:00:23]} 47. Qc8+ {[%clk 0:00:04]}  Kd3 {[%clk 0:00:23]} 48. Qd7+ {[%clk 0:00:03]}  Kc2 {[%clk 0:00:22]} 49. Qc6+ {[%clk 0:00:04]}  Kd3 {[%clk 0:00:22]} 50. Qd5+ {[%clk 0:00:04]}  Kc3 {[%clk 0:00:21]} 51. Qe5+ {[%clk 0:00:04]}  Kc2 {[%clk 0:00:21]} 52. Qc7+ {[%clk 0:00:02]}  Kd3 {[%clk 0:00:20]} 53. axb6 {[%clk 0:00:03]}  axb6 {[%clk 0:00:20]} 54. Qxb6 {[%clk 0:00:03]}  Kc2 {[%clk 0:00:20]} 55. Qc5+ {[%clk 0:00:04]}  Kd3 {[%clk 0:00:19]} 56. Qd6+ {[%clk 0:00:04]}  Kc2 {[%clk 0:00:19]} 57. Kxe4 {[%clk 0:00:04]}  b2 {[%clk 0:00:19]} 58. Qd3+ {[%clk 0:00:05]}  Kc1 {[%clk 0:00:19]} 59. f4 {[%clk 0:00:06]}  b1=Q {[%clk 0:00:18]} 60. Qxb1+ {[%clk 0:00:06]}  Kxb1 {[%clk 0:00:08]} 61. f5 {[%clk 0:00:07]} 1-0


[Site "https://www.chess.com"]

[Event "Titled Tuesday Blitz August 22 Early 2023"]
[White "Veinberg, Nimrod"]
[Black "Albertini, Luca"]
[WhiteFideId "2810280"]
[BlackFideId "847038"]
[WhiteElo "2691"]
[BlackElo "2343"]
[Result "1/2-1/2"]
[Round "8"]
[TimeControl "180+1"]
[Date "2023.08.22"]
[WhiteClock "0:00:04"]
[BlackClock "0:00:24"]
[Board "154"]

1. e4 {[%clk 0:01:15]}  e5 {[%clk 0:02:57]} 2. Nf3 {[%clk 0:01:15]}  Nc6 {[%clk 0:02:57]} 3. Bb5 {[%clk 0:01:15]}  a6 {[%clk 0:02:57]} 4. Ba4 {[%clk 0:01:15]}  Nf6 {[%clk 0:02:57]} 5. O-O {[%clk 0:01:16]}  b5 {[%clk 0:02:57]} 6. Bb3 {[%clk 0:01:16]}  Be7 {[%clk 0:02:58]} 7. Re1 {[%clk 0:01:15]}  O-O {[%clk 0:02:58]} 8. h3 {[%clk 0:01:15]}  d6 {[%clk 0:02:56]} 9. c3 {[%clk 0:01:15]}  Na5 {[%clk 0:02:56]} 10. Bc2 {[%clk 0:01:15]}  c5 {[%clk 0:02:57]} 11. d4 {[%clk 0:01:15]}  cxd4 {[%clk 0:02:57]} 12. cxd4 {[%clk 0:01:16]}  exd4 {[%clk 0:02:57]} 13. Nxd4 {[%clk 0:01:14]}  Qc7 {[%clk 0:02:57]} 14. Nc3 {[%clk 0:01:12]}  Bb7 {[%clk 0:02:57]} 15. a3 {[%clk 0:01:10]}  Rac8 {[%clk 0:02:56]} 16. Nf5 {[%clk 0:01:06]}  Rfe8 {[%clk 0:02:52]} 17. Qf3 {[%clk 0:01:00]}  Bf8 {[%clk 0:02:47]} 18. Bg5 {[%clk 0:00:57]}  Nd7 {[%clk 0:02:41]} 19. Qg3 {[%clk 0:00:57]}  Ne5 {[%clk 0:02:34]} 20. Rad1 {[%clk 0:00:53]}  Ng6 {[%clk 0:02:34]} 21. h4 {[%clk 0:00:44]}  h6 {[%clk 0:02:17]} 22. Bxh6 {[%clk 0:00:32]}  gxh6 {[%clk 0:02:18]} 23. h5 {[%clk 0:00:33]}  d5 {[%clk 0:02:17]} 24. e5 {[%clk 0:00:32]}  Re6 {[%clk 0:02:10]} 25. Nd4 {[%clk 0:00:30]}  Rxe5 {[%clk 0:02:06]} 26. hxg6 {[%clk 0:00:21]}  Rg5 {[%clk 0:02:05]} 27. gxf7+ {[%clk 0:00:20]}  Qxf7 {[%clk 0:02:04]} 28. Qh3 {[%clk 0:00:18]}  Rc4 {[%clk 0:01:50]} 29. Ne6 {[%clk 0:00:17]}  Rcg4 {[%clk 0:01:30]} 30. Nxg5 {[%clk 0:00:16]}  Rxg5 {[%clk 0:01:31]} 31. Rd3 {[%clk 0:00:14]}  d4 {[%clk 0:01:29]} 32. Ne4 {[%clk 0:00:13]}  Rg7 {[%clk 0:01:21]} 33. Rg3 {[%clk 0:00:12]}  Nc4 {[%clk 0:01:20]} 34. Rxg7+ {[%clk 0:00:08]}  Bxg7 {[%clk 0:01:21]} 35. Bb3 {[%clk 0:00:06]}  Kh8 {[%clk 0:01:09]} 36. Nd2 {[%clk 0:00:06]}  Bd5 {[%clk 0:01:05]} 37. Nxc4 {[%clk 0:00:04]}  bxc4 {[%clk 0:01:06]} 38. Bd1 {[%clk 0:00:05]}  d3 {[%clk 0:01:05]} 39. Bh5 {[%clk 0:00:06]}  Qf6 {[%clk 0:00:51]} 40. Qc8+ {[%clk 0:00:06]}  Bg8 {[%clk 0:00:50]} 41. Re8 {[%clk 0:00:06]}  Kh7 {[%clk 0:00:51]} 42. Rxg8 {[%clk 0:00:06]}  d2 {[%clk 0:00:49]} 43. Qxc4 {[%clk 0:00:05]}  Qxb2 {[%clk 0:00:47]} 44. Bd1 {[%clk 0:00:03]}  Qc1 {[%clk 0:00:45]} 45. Qc2+ {[%clk 0:00:01]}  Qxc2 {[%clk 0:00:44]} 46. Bxc2+ {[%clk 0:00:02]}  Kxg8 {[%clk 0:00:45]} 47. Kf1 {[%clk 0:00:02]}  Bb2 {[%clk 0:00:43]} 48. a4 {[%clk 0:00:03]}  Bc3 {[%clk 0:00:43]} 49. Ke2 {[%clk 0:00:04]}  a5 {[%clk 0:00:44]} 50. Bb3+ {[%clk 0:00:05]}  Kg7 {[%clk 0:00:43]} 51. g4 {[%clk 0:00:06]}  Kf6 {[%clk 0:00:43]} 52. f4 {[%clk 0:00:06]}  Bb4 {[%clk 0:00:43]} 53. Kf3 {[%clk 0:00:07]}  Bd6 {[%clk 0:00:42]} 54. Ke4 {[%clk 0:00:07]}  Bb4 {[%clk 0:00:42]} 55. Bd1 {[%clk 0:00:08]}  Bd6 {[%clk 0:00:42]} 56. Be2 {[%clk 0:00:09]}  Bb4 {[%clk 0:00:42]} 57. Kd5 {[%clk 0:00:09]}  Ba3 {[%clk 0:00:38]} 58. Bd1 {[%clk 0:00:08]}  Bb4 {[%clk 0:00:38]} 59. Kd4 {[%clk 0:00:08]}  Ke6 {[%clk 0:00:38]} 60. Ke4 {[%clk 0:00:08]}  Kf6 {[%clk 0:00:38]} 61. Bb3 {[%clk 0:00:08]}  Bc3 {[%clk 0:00:38]} 62. Ke3 {[%clk 0:00:08]}  Bb4 {[%clk 0:00:38]} 63. Kd3 {[%clk 0:00:08]}  Ke7 {[%clk 0:00:35]} 64. Ke4 {[%clk 0:00:04]}  Kf6 {[%clk 0:00:35]} 65. Bd1 {[%clk 0:00:04]}  Kg6 {[%clk 0:00:35]} 66. Kf3 {[%clk 0:00:05]}  Bd6 {[%clk 0:00:34]} 67. Kg3 {[%clk 0:00:06]}  Bb4 {[%clk 0:00:32]} 68. Kh4 {[%clk 0:00:06]}  Bd6 {[%clk 0:00:31]} 69. Kg3 {[%clk 0:00:03]}  Kf6 {[%clk 0:00:31]} 70. Kf3 {[%clk 0:00:03]}  Bc5 {[%clk 0:00:25]} 71. Ke4 {[%clk 0:00:03]}  Bb4 {[%clk 0:00:24]} 72. Ke3 {[%clk 0:00:04]}  Ke6 {[%clk 0:00:24]} 73. Bb3+ {[%clk 0:00:03]}  Kd6 {[%clk 0:00:24]} 74. Kd3 {[%clk 0:00:03]}  Ke7 {[%clk 0:00:23]} 75. Ke4 {[%clk 0:00:04]}  Kf6 {[%clk 0:00:24]} 1/2-1/2


[Site "https://www.chess.com"]

[Event "Titled Tuesday Blitz August 22 Early 2023"]
[White "Hajiyev, Kanan"]
[Black "Hrescak, Ivana"]
[WhiteFideId "13404148"]
[BlackFideId "14613441"]
[WhiteElo "2494"]
[BlackElo "2293"]
[Result "0-1"]
[Round "8"]
[TimeControl "180+1"]
[Date "2023.08.22"]
[WhiteClock "0:01:34"]
[BlackClock "0:00:12"]
[Board "156"]

1. d4 {[%clk 0:03:00]}  d5 {[%clk 0:02:59]} 2. c4 {[%clk 0:03:01]}  c6 {[%clk 0:02:59]} 3. cxd5 {[%clk 0:03:02]}  cxd5 {[%clk 0:02:58]} 4. Nc3 {[%clk 0:03:03]}  Nf6 {[%clk 0:02:57]} 5. Nf3 {[%clk 0:03:04]}  Nc6 {[%clk 0:02:57]} 6. Bg5 {[%clk 0:03:04]}  e6 {[%clk 0:02:43]} 7. e3 {[%clk 0:03:04]}  h6 {[%clk 0:02:41]} 8. Bh4 {[%clk 0:03:04]}  Be7 {[%clk 0:02:38]} 9. Bd3 {[%clk 0:03:05]}  O-O {[%clk 0:02:37]} 10. O-O {[%clk 0:03:05]}  a6 {[%clk 0:02:32]} 11. Rc1 {[%clk 0:03:05]}  Bd7 {[%clk 0:02:31]} 12. Na4 {[%clk 0:03:04]}  Rc8 {[%clk 0:02:28]} 13. Nc5 {[%clk 0:03:04]}  Rc7 {[%clk 0:02:18]} 14. Qd2 {[%clk 0:03:01]}  Ne8 {[%clk 0:02:09]} 15. b4 {[%clk 0:02:57]}  Bxh4 {[%clk 0:02:06]} 16. a4 {[%clk 0:02:52]}  Be7 {[%clk 0:02:02]} 17. b5 {[%clk 0:02:52]}  axb5 {[%clk 0:01:58]} 18. axb5 {[%clk 0:02:53]}  Nb8 {[%clk 0:01:45]} 19. b6 {[%clk 0:02:52]}  Rc8 {[%clk 0:01:39]} 20. Qa5 {[%clk 0:02:48]}  Bxc5 {[%clk 0:01:20]} 21. dxc5 {[%clk 0:02:45]}  Nc6 {[%clk 0:01:19]} 22. Qc3 {[%clk 0:02:43]}  Qf6 {[%clk 0:01:16]} 23. Qc2 {[%clk 0:02:38]}  e5 {[%clk 0:01:15]} 24. Bb5 {[%clk 0:02:34]}  Bg4 {[%clk 0:01:04]} 25. Nd2 {[%clk 0:02:33]}  Qg5 {[%clk 0:00:53]} 26. Rfe1 {[%clk 0:02:29]}  Bh3 {[%clk 0:00:50]} 27. Bf1 {[%clk 0:02:29]}  Bf5 {[%clk 0:00:37]} 28. Qa2 {[%clk 0:02:27]}  Nf6 {[%clk 0:00:35]} 29. Nf3 {[%clk 0:02:26]}  Qg4 {[%clk 0:00:32]} 30. Qb2 {[%clk 0:02:26]}  e4 {[%clk 0:00:28]} 31. h3 {[%clk 0:02:26]}  Qh5 {[%clk 0:00:26]} 32. Nd2 {[%clk 0:02:19]}  Qg6 {[%clk 0:00:23]} 33. Kh2 {[%clk 0:02:19]}  Be6 {[%clk 0:00:20]} 34. Ra1 {[%clk 0:02:14]}  Qf5 {[%clk 0:00:20]} 35. Kg1 {[%clk 0:02:13]}  Qe5 {[%clk 0:00:20]} 36. Qc2 {[%clk 0:02:06]}  Rfd8 {[%clk 0:00:20]} 37. Rec1 {[%clk 0:02:05]}  h5 {[%clk 0:00:19]} 38. Nb3 {[%clk 0:02:03]}  Qg5 {[%clk 0:00:19]} 39. Kh2 {[%clk 0:02:03]}  Qe5+ {[%clk 0:00:19]} 40. Kg1 {[%clk 0:02:03]}  d4 {[%clk 0:00:20]} 41. exd4 {[%clk 0:02:00]}  Nxd4 {[%clk 0:00:20]} 42. Nxd4 {[%clk 0:02:00]}  Rxd4 {[%clk 0:00:20]} 43. Qb2 {[%clk 0:01:56]}  Rd5 {[%clk 0:00:19]} 44. Qb5 {[%clk 0:01:53]}  Rdxc5 {[%clk 0:00:17]} 45. Rxc5 {[%clk 0:01:51]}  Qxc5 {[%clk 0:00:17]} 46. Qb2 {[%clk 0:01:50]}  Qc3 {[%clk 0:00:15]} 47. Qb1 {[%clk 0:01:51]}  e3 {[%clk 0:00:15]} 48. fxe3 {[%clk 0:01:51]}  Qxe3+ {[%clk 0:00:15]} 49. Kh1 {[%clk 0:01:52]}  Ne4 {[%clk 0:00:14]} 50. Ra7 {[%clk 0:01:48]}  Ng3+ {[%clk 0:00:13]} 51. Kh2 {[%clk 0:01:49]}  Nxf1+ {[%clk 0:00:13]} 52. Qxf1 {[%clk 0:01:50]}  Qe5+ {[%clk 0:00:13]} 53. Kh1 {[%clk 0:01:49]}  Qe3 {[%clk 0:00:12]} 54. Rxb7 {[%clk 0:01:48]}  Rc1 {[%clk 0:00:12]} 55. Rb8+ {[%clk 0:01:34]}  Kh7 {[%clk 0:00:12]} 0-1


[Site "https://www.chess.com"]